[Event "5th Baskent University Open 2022"]
[Site "Ankara"]
[Date "2022.07.04"]
[Round "5.7"]
[White "Ozer, Omer Faruk"]
[Black "Aliyev, Elnur"]
[Result "1-0"]
[ECO "B23"]
[WhiteElo "2317"]
[BlackElo "2142"]
[Annotator "TA"]
[PlyCount "77"]
[EventDate "2022.07.02"]
[EventType "swiss"]
[EventCountry "TUR"]
[SourceTitle "playchess.com"]
[Source "ChessBase"]
[SourceQuality "1"]
[TimeControl "5400+30"]

{[%evp 15,77,43,54,12,82,46,68,45,75,86,81,59,54,37,27,51,45,45,47,42,52,12,14,22,76,79,79,31,39,33,252,24,170,172,162,147,156,155,204,204,246,237,251,250,351,350,348,343,331,321,382,379,411,406,582,566,560,495,749,742,1554,1552,1059,1006]} 1. e4 {[%emt 0:01:00]} c5 {[%emt 0:01:00]} 2. Nc3 {[%emt 0:00:30]} Nc6 {[%emt 0:00:00]} 3. Bb5 {[%emt 0:00:00]} Nf6 {[%emt 0:03:00]} 4. Bxc6 {[%emt 0:04:00]} bxc6 {[%emt 0:01:30]} 5. f4 {[%emt 0:13:30]} d5 {[%emt 0:14:30]} 6. d3 {[%emt 0:01:30]} g6 {[%emt 0:01:30]} 7. Nf3 {[%emt 0:00:30]} Bg7 {[%emt 0:00:30]} 8. O-O {[%emt 0:00:30]} O-O {[%emt 0:11:30]} 9. Qe1 {[%emt 0:08:30] B23: Closed Sicilian: Lines without g3.} Ne8 {[%emt 0:06:30]} (9... dxe4 $11 10. Nxe4 Nxe4 11. dxe4 Ba6) 10. f5 {[%emt 0:20:30]} Nc7 {[%emt 0:07:30] [#]} 11. Qh4 $146 {[%emt 0:15:30] White is slightly better.} ({Predecessor:} 11. fxg6 fxg6 12. Qh4 e5 13. Bg5 Qd7 14. Bh6 Bxh6 15. Qxh6 Qe7 16. Nxe5 Ba6 17. Nxc6 {1-0 (25) Vaughan,D-Correa,A ICCF corr 1982}) 11... f6 {[%emt 0:15:30]} 12. fxg6 {[%emt 0:09:30] White is more active.} hxg6 {[%emt 0:00:30]} 13. Qg3 {[%emt 0:00:00]} g5 {[%emt 0:05:30]} 14. h4 {[%emt 0:00:00]} Qd6 $1 {[%emt 0:07:30]} 15. Qxd6 {[%emt 0:07:38]} exd6 {[%emt 0:00:30]} 16. hxg5 {[%emt 0:00:00]} fxg5 {[%emt 0:07:32]} 17. Bxg5 {[%emt 0:00:53] Hoping for Be7.} Rf7 {[%emt 0:04:31] Prevents Be7.} 18. Bd2 {[%emt 0:07:08]} Rb8 {[%emt 0:02:41]} 19. Rab1 {[%emt 0:00:04]} Ne6 {[%emt 0:00:00]} (19... Bg4 $11 {remains equal.}) 20. exd5 $16 {[%emt 0:01:22]} cxd5 {[%emt 0:01:19]} 21. b3 {[%emt 0:00:26]} (21. Nxd5 $16 Rxb2 22. Rxb2 Bxb2 23. Re1) 21... Nd4 $14 {[%emt 0:00:17]} 22. Ng5 {[%emt 0:04:27]} Re7 {[%emt 0:06:43]} (22... Rxf1+ $1 $14 23. Rxf1 Bb7) 23. Bf4 $2 {[%emt 0:02:15]} (23. Nxd5 $18 Ne2+ 24. Kh2 Be5+ 25. Bf4 Bxf4+ 26. Nxf4 (26. Rxf4 Re5 $11)) 23... Ne2+ {[%emt 0:01:14]} (23... Rd7 $1 $11) 24. Nxe2 $18 {[%emt 0:00:30]} Rxe2 {[%emt 0:00:00]} 25. Rbe1 $36 {[%emt 0:00:15][%mdl 2048] Black is under strong pressure.} Bd4+ {[%emt 0:00:24]} 26. Kh2 {[%emt 0:00:02]} Rxe1 {[%emt 0:01:06]} (26... Bg4 $16 27. Rxe2 (27. Bxd6 Rbe8 $18) 27... Bxe2 28. Bxd6 (28. Re1 Re8 $16) 28... Bxf1 29. Bxb8 Be3) 27. Rxe1 {[%emt 0:00:02]} Bf5 {[%emt 0:00:06]} 28. Bxd6 {[%emt 0:00:41]} Rc8 {[%emt 0:00:53]} 29. Be5 {[%emt 0:00:30] Bxd4 is the strong threat.} Bf2 {[%emt 0:00:30]} (29... Re8 {was necessary.}) 30. Rf1 {[%emt 0:00:30]} Re8 {[%emt 0:00:30]} 31. Bg3 {[%emt 0:00:30]} ({Resist} 31. Rxf2 Rxe5 32. Kg3 Bg6 $18) 31... Bxg3+ {[%emt 0:00:30]} 32. Kxg3 {[%emt 0:00:30][%mdl 4096] Endgame KRB-KRN} Bg6 {[%emt 0:00:30]} 33. Rf6 {[%emt 0:00:30]} Kg7 {[%emt 0:00:30]} 34. Rc6 {[%emt 0:00:30]} Re2 {[%emt 0:00:30]} (34... c4 $142 35. bxc4 dxc4 36. Rxc4 Re5) 35. Rxc5 {[%emt 0:00:30] White is clearly winning.} Kf6 {[%emt 0:00:30]} 36. Nh3 {[%emt 0:00:30]} Ke5 {[%emt 0:00:30] [#]} (36... Re3+ $142 37. Kf2 Re5) 37. Rxd5+ $3 {[%emt 0:00:30][%mdl 512]} Kf6 {[%emt 0:00:30]} (37... Kxd5 38. Nf4+) 38. Rd6+ {[%emt 0:00:30]} Kf5 {[%emt 0:00:30] [#]} 39. Rxg6 $1 {[%emt 0:00:30] Weighted Error Value: White=0.29 (precise) /Black=0.56} 1-0

[Event "5th Baskent University Open 2022"]
[Site "Ankara"]
[Date "2022.07.04"]
[Round "5.8"]
[White "Zor, Alber Kadir"]
[Black "Akbas, Umut Ata"]
[Result "1/2-1/2"]
[ECO "A49"]
[WhiteElo "2116"]
[BlackElo "2298"]
[Annotator "TA"]
[PlyCount "39"]
[EventDate "2022.07.02"]
[EventType "swiss"]
[EventCountry "TUR"]
[SourceTitle "playchess.com"]
[Source "ChessBase"]
[SourceQuality "1"]
[TimeControl "5400+30"]

{[%evp 13,39,32,35,31,44,41,35,40,42,45,90,49,61,59,77,71,64,62,62,48,51,38,53,27,47,29,50,52]} 1. Nf3 {[%emt 0:01:00]} Nf6 {[%emt 0:04:00]} 2. g3 {[%emt 0:00:00]} g6 {[%emt 0:00:30]} 3. b3 {[%emt 0:00:00]} Bg7 {[%emt 0:00:30]} 4. Bb2 {[%emt 0:00:00]} O-O {[%emt 0:00:30]} 5. Bg2 {[%emt 0:01:00]} d6 {[%emt 0:01:30]} 6. d4 {[%emt 0:00:30]} c6 {[%emt 0:02:30]} 7. O-O {[%emt 0:00:30]} Qc7 {[%emt 0:00:30] Recently 7...Bf5 got a lot of attention.} 8. Nbd2 {[%emt 0:00:30] A49: 1 d4 Nf6 2 Nf3 g6 3 g3: Anti-King's Indian systems.} Re8 {[%emt 0:02:30]} 9. e4 {[%emt 0:00:30][%cal Be2e4,Be4e5][%mdl 32]} Bg4 {[%emt 0:00:30]} 10. e5 {[%emt 0:04:30]} Nfd7 {[%emt 0:05:30][%cal Rd6e5,Bf6d7,Bd7f8,Bf8e6][%mdl 32]} 11. Qe2 {[%emt 0:05:30] [#]} Nf8 $146 {[%emt 0:10:30]} ({Predecessor:} 11... c5 12. exd6 Qxd6 13. dxc5 Qxc5 14. Bxg7 Kxg7 15. Qe4 Bxf3 16. Qxf3 Nc6 17. Nc4 Nf6 18. Rad1 Rad8 19. Qe3 Qh5 20. Qf3 Qc5 21. Qe3 Qh5 22. Qf3 Qc5 23. Qe3 {½-½ (23) Adamczewski,J (1892)-Adamczewski,M (2109) Jastrzebia Gora 2019}) 12. Rfe1 {[%emt 0:02:30] White is more active.} Nbd7 {[%emt 0:05:30]} 13. h3 {[%emt 0:01:30]} Bxf3 {[%emt 0:00:30]} 14. Nxf3 {[%emt 0:00:30]} ({Much weaker is} 14. Qxf3 dxe5 15. Qe3 exd4 16. Bxd4 e5 $17) 14... Ne6 {[%emt 0:07:30]} 15. Rad1 {[%emt 0:01:30]} Rad8 {[%emt 0:04:30]} 16. c4 {[%emt 0:09:30] Hoping for d5.} dxe5 {[%emt 0:01:30]} 17. dxe5 {[%emt 0:00:00]} Ndc5 {[%emt 0:03:30]} 18. h4 {[%emt 0:10:00]} Qa5 {[%emt 0:04:30]} 19. Ba1 {[%emt 0:07:30]} Rxd1 {[%emt 0:08:30]} 20. Rxd1 {[%emt 0:00:30] Weighted Error Value: White=0.08 (flawless) /Black=0.10 (very precise)} 1/2-1/2

[Event "5th Baskent University Open 2022"]
[Site "Ankara"]
[Date "2022.07.04"]
[Round "5.9"]
[White "Yerden, Huseyin Eren"]
[Black "Ozsoy, Alimert"]
[Result "0-1"]
[ECO "D11"]
[WhiteElo "2050"]
[BlackElo "2263"]
[Annotator "TA"]
[PlyCount "112"]
[EventDate "2022.07.02"]
[EventType "swiss"]
[EventCountry "TUR"]
[SourceTitle "playchess.com"]
[Source "ChessBase"]
[SourceQuality "1"]
[TimeControl "5400+30"]

{[%evp 9,112,9,12,8,12,5,27,28,45,46,61,43,47,41,47,8,6,-6,11,-2,0,-56,-63,-66,-55,-86,-33,-83,-22,-276,-77,-85,-58,-77,43,72,95,63,44,0,67,49,109,77,66,98,83,19,162,153,177,177,178,0,47,50,45,38,127,72,77,75,597,584,682,668,2359,2333,2045,1957,1613,590,587,582,567,497,679,0,0,0,0,0,0,0,0,0,0,0,0,0,0,-29981,-29982,-29976,-29977,-29974,-29948,-29987,-29988,-29986,-29968,-29989,-29987,-29987,-29984]} 1. d4 {[%emt 0:01:00]} d5 {[%emt 0:05:00]} 2. c4 {[%emt 0:00:30]} c6 {[%emt 0:00:30]} 3. Nf3 {[%emt 0:00:30]} Nf6 {[%emt 0:00:00]} 4. g3 {[%emt 0:00:00]} Bg4 {[%emt 0:00:00]} 5. Ne5 {[%emt 0:00:00]} Bf5 {[%emt 0:00:30]} 6. cxd5 {[%emt 0:00:30] D11: Slav Defence: 3 Nf3 sidelines and 3...Nf6 4 e3 Bg4.} cxd5 {[%emt 0:02:30]} 7. Nc3 {[%emt 0:00:30][%cal Oe2e4]} Nc6 {[%emt 0:00:30]} 8. f3 {[%emt 0:01:30][%cal Oe2e4] White has an edge.} Qb6 {[%emt 0:10:30] [#]} 9. e3 $146 {[%emt 0:03:30]} ({Predecessor:} 9. g4 Be6 10. Nxc6 bxc6 11. e3 Nd7 12. Na4 Qc7 13. Bd2 f6 14. Rc1 Qd6 15. Qc2 {1-0 (45) Le,Q (2709)-Brunner,N (2428) Chess.com INT 2020}) 9... g6 {[%emt 0:03:30]} 10. g4 {[%emt 0:07:30]} Be6 {[%emt 0:00:30]} 11. Nd3 {[%emt 0:06:30]} Bd7 {[%emt 0:11:30]} 12. g5 {[%emt 0:03:30]} Nh5 {[%emt 0:04:30]} 13. f4 {[%emt 0:01:30]} (13. Kf2 {with more complications.} e6 14. f4 Bd6 15. h4) 13... e6 {[%emt 0:00:30]} 14. Be2 {[%emt 0:01:30]} (14. Kf2 {keeps more tension.} Bd6 15. h4 h6 16. Bd2) 14... Ng7 {[%emt 0:01:30]} 15. Bd2 {[%emt 0:04:30]} (15. h4 $11) 15... h6 $15 {[%emt 0:06:30]} 16. gxh6 {[%emt 0:02:30]} Nf5 {[%emt 0:00:30]} 17. Bf3 {[%emt 0:15:30]} Bxh6 {[%emt 0:00:30] Black is more active.} (17... Rc8 $17) 18. Nc5 {[%emt 0:05:30]} (18. Bg4 $15) 18... Bc8 {[%emt 0:02:30]} (18... Qxb2 19. Rb1 Nxe3 20. Rxb2 $16) (18... Bg7 $17 {aiming for ...Rh3.} 19. Ne2 Rb8) 19. Qa4 $2 {[%emt 0:06:30][%mdl 8192] [#]} (19. h4 $11) 19... g5 $2 {[%emt 0:03:30]} (19... Qxb2 20. Rb1 b5 21. Qd1 (21. Rxb2 bxa4 22. Bd1 Rb8 $11) (21. Qxb5 Qxb5 22. Nxb5 Rb8 $14) 21... Nxe3 22. Rxb2 $16) (19... Bxf4 $1 $19 {[%mdl 512] is more deadly.} 20. exf4 (20. Bxd5 exd5) 20... Nfxd4) 20. fxg5 $17 {[%emt 0:05:30]} Bxg5 {[%emt 0:00:30]} 21. O-O-O $1 {[%emt 0:05:30]} Be7 {[%emt 0:03:30]} (21... Bxe3 $17 22. Bxe3 Nxe3) 22. Kb1 $14 {[%emt 0:00:30]} Qc7 {[%emt 0:00:30]} 23. Nb5 {[%emt 0:10:15]} Qb6 {[%emt 0:20:30]} 24. Nc3 {[%emt 0:05:13]} a6 {[%emt 0:01:30]} (24... Qc7 $1 $11) 25. Bc1 {[%emt 0:03:34]} (25. h4 {feels hotter.} Qa5 26. Qc2 Bxc5 27. dxc5 Qxc5 28. e4) 25... Qa7 {[%emt 0:03:55]} ({Better is} 25... Qa5 $14) 26. Qc2 {[%emt 0:02:29]} (26. h4 {looks sharper.} Rxh4 27. Rxh4 Nxh4 28. Bh5) 26... b6 {[%emt 0:03:48]} (26... Bxc5 $6 27. dxc5 Qxc5 28. e4 dxe4 29. Bxe4 $11) 27. Nb3 {[%emt 0:00:13][%cal Oc3d5] Threatens to win with Nxd5!} Bb7 {[%emt 0:03:44]} 28. Qf2 {[%emt 0:01:45]} ({White should try} 28. e4 $16 Nb4 29. Qe2 dxe4 30. Bxe4) 28... Nh4 {[%emt 0:05:35]} (28... Nd6 $1 $11 {and Black stays safe.}) 29. Be2 $1 $18 {[%emt 0:00:06]} f5 {[%emt 0:00:44]} 30. Rhg1 {[%emt 0:01:11]} O-O-O {[%emt 0:02:11]} 31. Nd2 $2 {[%emt 0:00:22]} (31. e4 $1 $18 {[%cal Re4d5]}) 31... b5 {[%emt 0:00:40]} (31... Kb8 $11 {was preferrable.}) 32. Nf3 $14 {[%emt 0:00:38]} Nxf3 {[%emt 0:00:55]} 33. Bxf3 {[%emt 0:00:05]} Qb8 {[%emt 0:00:40] [#]} (33... Kb8 $14) 34. Rg6 {[%emt 0:00:57]} (34. Bxd5 $142 $1 {[%mdl 512]} exd5 35. Qxf5+ Kc7 36. Nxd5+ Rxd5 37. Qxd5) 34... Rxh2 $16 {[%emt 0:00:30]} 35. Qg1 {[%emt 0:00:30]} Kd7 {[%emt 0:00:30][%mdl 8192] [#]} (35... Bd6 $16) 36. e4 $1 $18 {[%emt 0:00:30]} b4 {[%emt 0:00:30]} 37. Na4 {[%emt 0:00:30]} (37. exd5 bxc3 38. dxc6+ Bxc6 39. Bxc6+ Kxc6 $11) 37... dxe4 {[%emt 0:00:30]} 38. d5 {[%emt 0:00:30]} Kc8 {[%emt 0:00:30]} 39. dxc6 {[%emt 0:00:30]} Bxc6 {[%emt 0:00:30]} 40. Rxd8+ {[%emt 0:05:05]} (40. Rxe6 $142 Bd6 41. Nb6+ Kb7 {[#]} 42. Rdxd6 $1 {[%mdl 512]}) 40... Bxd8 {[%emt 0:02:29]} 41. Bd1 {[%emt 0:01:16]} (41. Qc5 Qb5 42. Bd1 (42. Rxe6 Qxc5 43. Nxc5 Bb5 $11) 42... Qxc5 43. Nxc5 Rh1 $16) 41... Qd6 {[%emt 0:00:37][%cal Oe4e3]} 42. Bb3 {[%emt 0:00:39]} e3 {[%emt 0:00:51]} (42... Qd3+ 43. Ka1 Bxa4 44. Qc5+ Kb8 45. Rg7 (45. Bxa4 Rh1 $16)) 43. Rxe6 $2 {[%emt 0:00:36]} (43. Qxe3 $18 Bxa4 44. Bxa4) 43... Qd3+ $11 {[%emt 0:00:44]} 44. Ka1 {[%emt 0:00:04]} Be4 {[%emt 0:00:14] ( -> ...Qb1#)} 45. Rxe4 {[%emt 0:00:50]} (45. Bxe3 $2 Rh1 46. Qxh1 Bxh1 $19) 45... Qxe4 {[%emt 0:00:30]} 46. Qxh2 {[%emt 0:00:30] Qd6 would kill now.} e2 {[%emt 0:00:00]} 47. Nc5 {[%emt 0:00:38] Threatening mate with Qd6.} e1=Q $40 {[%emt 0:00:10][%cal Re1c1][%mdl 128] Black attacks. The board is on fire.} 48. Qh6 {[%emt 0:00:19]} Q4h1 {[%emt 0:01:22]} (48... Qe7 $2 49. Qc6+ Kb8 50. Kb1 $18) 49. Qxa6+ {[%emt 0:00:21]} Kc7 {[%emt 0:00:25][%cal Re1c1]} 50. Qa7+ $2 {[%emt 0:00:48][%mdl 8192]} (50. Qa5+ $11 Kd6 51. Qxd8+ Kxc5 52. Qf8+ Kb5 53. Qb8+ Kc6 54. Qc8+ Kd6 55. Qd8+ Kc6 56. Qc8+ Kb5 57. Qd7+ Kc5 58. Qa7+ Kd6 59. Qb8+ Ke7 60. Qc7+ Ke8 61. Qb8+ Ke7 62. Qc7+ Ke8 63. Ba4+ Kf8 64. Qd8+ Kg7 65. Qg5+ Kh8 66. Qf6+ Kh7 67. Qf7+ (67. Qxf5+ Kg7 $11) 67... Kh8 68. Qf6+ Kh7 69. Qf7+ (69. Qxf5+ Kg7 $11) 69... Kh8 70. Qf8+ Kh7 71. Qxf5+ Kg7 72. Qg5+ Kf7 73. Qf5+ Kg7 74. Qg5+ Kf7 75. Bb3+ Ke8 76. Qg8+ Kd7 77. Ba4+ Ke7 78. Qg7+ Ke6 79. Qg6+ Ke5 80. Qg7+ (80. Qg5+ Kd4 $11) 80... Ke6 81. Qg8+ Kf6 82. Qd8+ (82. Qg5+ Kf7 $11) 82... Qe7 83. Qd4+ Qe5 84. Qd8+ Qe7 85. Qd4+ Qe5 86. Qd8+ Qe7) 50... Kd6 {[%emt 0:00:25][%cal Re1c1] Black mates.} 51. Nb7+ {[%emt 0:00:34] [#]} Qxb7 $3 {[%emt 0:00:15][%cal Re1c1][%mdl 512]} 52. Qd4+ {[%emt 0:00:25]} Kc7 {[%emt 0:00:26][%cal Re1c1]} 53. Bd1 {[%emt 0:00:19]} Qc6 {[%emt 0:00:24][%cal Rc6c1]} 54. Bf4+ {[%emt 0:00:32]} Kb7 {[%emt 0:00:08]} 55. a3 {[%emt 0:00:39]} Bb6 {[%emt 0:00:12]} 56. Qd3 {[%emt 0:00:24]} Qee4 {[%emt 0:00:15] A wild game.  Weighted Error Value: White=0.45/Black=0.50} 0-1

[Event "5th Baskent University Open 2022"]
[Site "Ankara"]
[Date "2022.07.04"]
[Round "5.10"]
[White "Ozturk, Efe Hakan"]
[Black "Citak, Selim"]
[Result "1/2-1/2"]
[ECO "E05"]
[WhiteElo "2115"]
[BlackElo "2176"]
[Annotator "RC"]
[PlyCount "38"]
[EventDate "2022.07.02"]
[EventType "swiss"]
[EventCountry "TUR"]
[SourceTitle "playchess.com"]
[Source "ChessBase"]
[SourceQuality "1"]
[TimeControl "5400+30"]

1. Nf3 {[%emt 0:01:00]} Nf6 {[%emt 0:02:00]} 2. c4 {[%emt 0:00:30]} e6 {[%emt 0:00:00]} 3. g3 {[%emt 0:00:30]} d5 {[%emt 0:00:00]} 4. Bg2 {[%emt 0:01:30]} Be7 {[%emt 0:00:30]} 5. O-O {[%emt 0:01:30]} O-O {[%emt 0:00:30]} 6. d4 {[%emt 0:00:00]} dxc4 {[%emt 0:00:30]} 7. Qc2 {[%emt 0:00:00]} a6 {[%emt 0:00:30]} 8. a4 {[%emt 0:00:30]} Bd7 {[%emt 0:01:30]} 9. Ne5 {[%emt 0:00:30]} Bc6 {[%emt 0:00:30]} 10. Nxc6 {[%emt 0:00:30]} Nxc6 {[%emt 0:00:30]} 11. e3 {[%emt 0:00:30]} Na5 {[%emt 0:00:30]} 12. Nd2 {[%emt 0:00:30]} c5 {[%emt 0:00:30]} 13. dxc5 {[%emt 0:00:30]} Rc8 {[%emt 0:03:30]} 14. b4 {[%emt 0:01:30]} cxb3 {[%emt 0:00:30]} 15. Nxb3 {[%emt 0:00:30]} Nxb3 {[%emt 0:01:30]} 16. Qxb3 {[%emt 0:00:00]} Nd7 {[%emt 0:00:30]} 17. Ba3 {[%emt 0:04:00]} Nxc5 {[%emt 0:00:30]} 18. Bxc5 {[%emt 0:00:00]} Rxc5 {[%emt 0:00:30]} 19. Qxb7 {[%emt 0:02:00]} a5 {[%emt 0:01:30]} 1/2-1/2

[Event "5th Baskent University Open 2022"]
[Site "Ankara"]
[Date "2022.07.04"]
[Round "5.11"]
[White "Altun, Arda"]
[Black "Maruflu, Enes Yusuf"]
[Result "1/2-1/2"]
[ECO "C65"]
[WhiteElo "2213"]
[BlackElo "2046"]
[Annotator "RC"]
[PlyCount "72"]
[EventDate "2022.07.02"]
[EventType "swiss"]
[EventCountry "TUR"]
[SourceTitle "playchess.com"]
[Source "ChessBase"]
[SourceQuality "1"]
[TimeControl "5400+30"]

1. e4 {[%emt 0:02:00]} e5 {[%emt 0:01:00]} 2. Nf3 {[%emt 0:00:30]} Nc6 {[%emt 0:00:00]} 3. Bb5 {[%emt 0:00:30]} Nf6 {[%emt 0:00:00]} 4. d3 {[%emt 0:00:30]} Bc5 {[%emt 0:00:30]} 5. Nbd2 {[%emt 0:00:00]} O-O {[%emt 0:06:30]} 6. Nb3 {[%emt 0:00:00]} Bb6 {[%emt 0:03:30]} 7. Bxc6 {[%emt 0:04:30]} bxc6 {[%emt 0:00:30]} 8. Nxe5 {[%emt 0:00:30]} d5 {[%emt 0:01:30]} 9. O-O {[%emt 0:00:30]} dxe4 {[%emt 0:01:30]} 10. dxe4 {[%emt 0:00:30]} Qe8 {[%emt 0:13:30]} 11. Bf4 {[%emt 0:07:30]} Nxe4 {[%emt 0:00:30]} 12. Qd3 {[%emt 0:09:30]} f6 {[%emt 0:08:30]} 13. Qxe4 {[%emt 0:03:30]} fxe5 {[%emt 0:00:30]} 14. Bg3 {[%emt 0:12:30]} Bf5 {[%emt 0:02:30]} 15. Qe2 {[%emt 0:04:30]} Qg6 {[%emt 0:01:30]} 16. Rac1 {[%emt 0:01:30]} Kh8 {[%emt 0:02:30]} 17. Kh1 {[%emt 0:04:30]} Rae8 {[%emt 0:02:30]} 18. Bxe5 {[%emt 0:00:30]} Bxc2 {[%emt 0:02:30]} 19. Bxg7+ {[%emt 0:11:30]} Kxg7 {[%emt 0:00:30]} 20. Qxc2 {[%emt 0:00:00]} Qxc2 {[%emt 0:00:30]} 21. Rxc2 {[%emt 0:00:00]} Rxf2 {[%emt 0:00:30]} 22. Rcxf2 {[%emt 0:00:30]} Bxf2 {[%emt 0:00:00]} 23. Rd1 {[%emt 0:02:30]} Re2 {[%emt 0:13:00]} 24. Nd2 {[%emt 0:00:30]} Bd4 {[%emt 0:04:30]} 25. b3 {[%emt 0:10:30]} c5 {[%emt 0:04:30]} 26. g3 {[%emt 0:02:30]} Rf2 {[%emt 0:03:30]} 27. b4 {[%emt 0:02:33]} Kg6 {[%emt 0:07:59]} 28. a4 {[%emt 0:10:26]} cxb4 {[%emt 0:11:09]} 29. Ne4 {[%emt 0:00:05]} Re2 {[%emt 0:00:18]} 30. Rxd4 {[%emt 0:00:45]} b3 {[%emt 0:00:05]} 31. Nc3 {[%emt 0:03:39]} Rc2 {[%emt 0:01:13]} 32. Nd1 {[%emt 0:01:17]} c5 {[%emt 0:04:08]} 33. Rd5 {[%emt 0:03:13]} c4 {[%emt 0:00:30]} 34. Kg1 {[%emt 0:00:30]} c3 {[%emt 0:00:30]} 35. Rb5 {[%emt 0:00:30]} a6 {[%emt 0:00:30]} 36. Rb4 {[%emt 0:00:30]} Kf5 {[%emt 0:03:56]} 1/2-1/2

[Event "5th Baskent University Open 2022"]
[Site "Ankara"]
[Date "2022.07.04"]
[Round "5.12"]
[White "Tarhan, Adar"]
[Black "Khoder, Akram"]
[Result "1-0"]
[ECO "B42"]
[WhiteElo "2201"]
[BlackElo "2038"]
[Annotator "RC"]
[PlyCount "67"]
[EventDate "2022.07.02"]
[EventType "swiss"]
[EventCountry "TUR"]
[SourceTitle "playchess.com"]
[Source "ChessBase"]
[SourceQuality "1"]
[TimeControl "5400+30"]

1. e4 {[%emt 0:01:00]} c5 {[%emt 0:05:00]} 2. Nf3 {[%emt 0:00:00]} e6 {[%emt 0:01:30]} 3. d4 {[%emt 0:00:00]} cxd4 {[%emt 0:00:30]} 4. Nxd4 {[%emt 0:00:30]} a6 {[%emt 0:00:30]} 5. Bd3 {[%emt 0:00:30]} Bc5 {[%emt 0:00:30]} 6. Nb3 {[%emt 0:00:30]} Ba7 {[%emt 0:00:30]} 7. Qe2 {[%emt 0:00:00]} Ne7 {[%emt 0:00:00]} 8. Be3 {[%emt 0:00:00]} O-O {[%emt 0:00:00]} 9. Nc3 {[%emt 0:00:00]} d6 {[%emt 0:00:00]} 10. O-O-O {[%emt 0:00:00]} b5 {[%emt 0:00:00]} 11. e5 {[%emt 0:00:30]} d5 {[%emt 0:00:30]} 12. Bxa7 {[%emt 0:00:30]} Rxa7 {[%emt 0:00:30]} 13. h4 {[%emt 0:04:30]} b4 {[%emt 0:00:00]} 14. Nb1 {[%emt 0:00:30]} a5 {[%emt 0:00:00]} 15. Qe3 {[%emt 0:02:30]} Nbc6 {[%emt 0:01:30]} 16. h5 {[%emt 0:00:30]} Nf5 {[%emt 0:10:30]} 17. Bxf5 {[%emt 0:01:30]} exf5 {[%emt 0:00:30]} 18. Qc5 {[%emt 0:01:30]} Qc7 {[%emt 0:06:30]} 19. Rxd5 {[%emt 0:02:30]} Be6 {[%emt 0:06:30]} 20. Rd6 {[%emt 0:01:30]} Rc8 {[%emt 0:00:30]} 21. Rhd1 {[%emt 0:00:30]} h6 {[%emt 0:00:30]} 22. Rxc6 {[%emt 0:00:00]} Qxc6 {[%emt 0:06:30]} 23. Rd8+ {[%emt 0:00:00]} Kh7 {[%emt 0:00:30]} 24. Rxc8 {[%emt 0:00:30]} Qe4 {[%emt 0:00:00]} 25. Rd8 {[%emt 0:00:30]} Ra8 {[%emt 0:00:00]} 26. Rd4 {[%emt 0:05:30]} Qxg2 {[%emt 0:00:30]} 27. Rd1 {[%emt 0:00:00]} Rc8 {[%emt 0:01:30]} 28. Qe3 {[%emt 0:00:00]} a4 {[%emt 0:00:30]} 29. Nd4 {[%emt 0:04:30]} Bxa2 {[%emt 0:00:30]} 30. Qf4 {[%emt 0:04:30]} g6 {[%emt 0:04:30]} 31. hxg6+ {[%emt 0:00:30]} fxg6 {[%emt 0:00:00]} 32. Nxf5 {[%emt 0:00:30]} g5 {[%emt 0:02:00]} 33. Qxb4 {[%emt 0:01:30]} Rc7 {[%emt 0:02:30]} 34. Qd6 {[%emt 0:00:30]} 1-0

[Event "5th Baskent University Open 2022"]
[Site "Ankara"]
[Date "2022.07.04"]
[Round "5.13"]
[White "Ipek, Egehan"]
[Black "Bekiragaoglu, Umut"]
[Result "1/2-1/2"]
[ECO "E05"]
[WhiteElo "2196"]
[BlackElo "2067"]
[Annotator "RC"]
[PlyCount "68"]
[EventDate "2022.07.02"]
[EventType "swiss"]
[EventCountry "TUR"]
[SourceTitle "playchess.com"]
[Source "ChessBase"]
[SourceQuality "1"]
[TimeControl "5400+30"]

1. c4 {[%emt 0:01:00]} e6 {[%emt 0:03:00]} 2. Nf3 {[%emt 0:00:30]} d5 {[%emt 0:00:30]} 3. g3 {[%emt 0:00:00]} Nf6 {[%emt 0:00:30]} 4. Bg2 {[%emt 0:00:00]} Be7 {[%emt 0:00:30]} 5. O-O {[%emt 0:00:30]} O-O {[%emt 0:00:30]} 6. d4 {[%emt 0:00:00]} dxc4 {[%emt 0:00:00]} 7. Qa4 {[%emt 0:00:00]} a6 {[%emt 0:01:00]} 8. Qxc4 {[%emt 0:00:00]} b5 {[%emt 0:00:30]} 9. Qc2 {[%emt 0:00:00]} Bb7 {[%emt 0:00:30]} 10. Bd2 {[%emt 0:00:00]} Ra7 {[%emt 0:00:30]} 11. Rd1 {[%emt 0:07:00]} Be4 {[%emt 0:01:30]} 12. Qc1 {[%emt 0:01:30]} Nc6 {[%emt 0:01:30]} 13. e3 {[%emt 0:02:30]} Qa8 {[%emt 0:00:30]} 14. Ne1 {[%emt 0:01:30]} Bxg2 {[%emt 0:04:30]} 15. Nxg2 {[%emt 0:00:00]} e5 {[%emt 0:01:30]} 16. Nh4 {[%emt 0:18:00]} g6 {[%emt 0:07:30]} 17. Nc3 {[%emt 0:20:30]} exd4 {[%emt 0:04:30]} 18. exd4 {[%emt 0:00:30]} Nxd4 {[%emt 0:01:30]} 19. Be3 {[%emt 0:01:30]} c5 {[%emt 0:00:00]} 20. Bxd4 {[%emt 0:03:30]} cxd4 {[%emt 0:01:00]} 21. Rxd4 {[%emt 0:00:30]} Rd8 {[%emt 0:00:30]} 22. Rxd8+ {[%emt 0:05:30]} Qxd8 {[%emt 0:00:30]} 23. Nf3 {[%emt 0:01:30]} Qb6 {[%emt 0:09:30]} 24. Qf4 {[%emt 0:04:30]} Bc5 {[%emt 0:00:30]} 25. Ng5 {[%emt 0:02:30]} Re7 {[%emt 0:12:30]} 26. Rd1 {[%emt 0:03:30]} Qc6 {[%emt 0:05:30]} 27. Qf3 {[%emt 0:19:25]} Qxf3 {[%emt 0:04:30]} 28. Nxf3 {[%emt 0:00:02]} Bb4 {[%emt 0:00:30]} 29. Rd4 {[%emt 0:05:33]} Bxc3 {[%emt 0:00:30]} 30. bxc3 {[%emt 0:00:00]} Rc7 {[%emt 0:03:30]} 31. Rd6 {[%emt 0:02:18]} Ne4 {[%emt 0:00:30]} 32. Rxa6 {[%emt 0:00:47]} Rxc3 {[%emt 0:00:00]} 33. Nd4 {[%emt 0:00:03]} b4 {[%emt 0:01:00]} 34. Rb6 {[%emt 0:00:56]} Ra3 {[%emt 0:00:30]} 1/2-1/2